Workbook

Sheet ORÇAMENTO
A1: <---- NUMERAR SERVIÇOS PARA CPU | C1: Ministério do Desenvolvimento Regional
C2: Companhia de Desenvolvimento dos Vales do São Francisco e do Parnaíba
C3: 1ª Superintendência Regional
B5: OBRA: | C5: DRENAGEM E PAVIMENTAÇÃO - PARQUE DE EXPOSIÇÕES - SERRO/MG (ITEM 1)
B6: DATA: | C6: OUTUBRO/2023 | G6: BDI Serviços: | I6: ='BDI SERV'!D30/100 -> 0.2149
B7: PRAZO DE EXECUÇÃO: 180 DIAS | G7: BDI Fornecimentos: | I7: ='BDI FORN'!D30/100 -> 0.15
B8: ITEM | C8: DISCRIMINAÇÃO | D8: REFER. | E8: UNID. | F8: QUANT. | G8: P. UNITÁRIO | H8: P.UNIT.C/ BDI | I8: P. TOTAL | J8: =I53 -> 3027243.89
A9: A | B9: 1 | C9: SERVIÇOS PRELIMINARES | I9: =SUM(I10:I14) -> 202428.6 | J9: =I9/I53 -> 0.06686894329
A10: 1 | B10: 1.1 | C10: MOBILIZAÇÃO E DESMOBILIZAÇÃO | D10: CPU.1 | E10: GL | F10: 1 | G10: =VLOOKUP(A10,CPU!$A$1:$N$4921,9) -> 14753.36 | H10: =VLOOKUP(A10,CPU!$A$1:$N$4921,10) -> 17923.85706 | I10: =ROUND(F10*H10,2) -> 17923.86 | J10: =I10/$I$53 -> 0.005920850996
A11: 2 | B11: 1.2 | C11: ADMINISTRAÇÃO LOCAL | D11: CPU.2 | E11: GL | F11: 1 | G11: =VLOOKUP(A11,CPU!$A$1:$N$4921,9) -> 130204.5 | H11: =VLOOKUP(A11,CPU!$A$1:$N$4921,10) -> 158185.447 | I11: =ROUND(F11*H11,2) -> 158185.45 | J11: =I11/I53 -> 0.05225394971
A12: 3 | B12: 1.3 | C12: CANTEIRO DE OBRAS | D12: CPU.3 | E12: GL | F12: 1 | G12: =VLOOKUP(A12,CPU!$A$1:$N$4921,9) -> 13531.5 | H12: =VLOOKUP(A12,CPU!$A$1:$N$4921,10) -> 16439.41935 | I12: =ROUND(F12*H12,2) -> 16439.42 | J12: =I12/$I$53 -> 0.005430490769
A13: 4 | B13: 1.4 | C13: PLACA DE OBRA EM CHAPA DE AÇO GALVANIZADO | D13: 103689 | E13: M2 | F13: 4.5 | G13: =VLOOKUP(A13,CPU!$A$1:$N$4921,9) -> 340.5 | H13: =VLOOKUP(A13,CPU!$A$1:$N$4921,10) -> 413.67345 | I13: =ROUND(F13*H13,2) -> 1861.53 | J13: 0.0006149256775
A14: 5 | B14: 1.5 | C14: SERVIÇOS TOPOGRÁFICOS PARA PAVIMENTAÇÃO, INCLUSIVE NOTA DE SERVIÇO, ACOMPANHAMENTO E GREIDE | D14: 99064 | E14: M2 | F14: 20000 | G14: =VLOOKUP(A14,CPU!$A$1:$N$4921,9) -> 0.33 | H14: =VLOOKUP(A14,CPU!$A$1:$N$4921,10) -> 0.400917 | I14: =ROUND(F14*H14,2) -> 8018.34 | J14: 0.002648726132
A15: B | B15: 2 | C15: TERRAPLANAGEM E PAVIMENTAÇÃO | I15: =SUM(I16:I24) -> 979031.87 | J15: 0.3234070017
A16: 6 | B16: 2.1 | C16: ESCAVAÇÃO HORIZONTAL EM SOLO DE 1A CATEGORIA COM TRATOR DE ESTEIRAS | D16: 101116 | E16: M3 | F16: 4200 | G16: =VLOOKUP(A16,CPU!$A$1:$N$4921,9) -> 2.2 | H16: =VLOOKUP(A16,CPU!$A$1:$N$4921,10) -> 2.67278 | I16: =ROUND(F16*H16,2) -> 11225.68 | J16: 0.003708217906
A17: 7 | B17: 2.2 | C17: CARGA, MANOBRA E DESCARGA DE SOLOS E MATERIAIS GRANULARES EM CAMINHÃO BASCULANTE - CARGA COM PÁ CARREGADEIRA E DESCARGA LIVRE | D17: 100976 | E17: M3 | F17: 4200 | G17: =VLOOKUP(A17,CPU!$A$1:$N$4921,9) -> 8.71 | H17: =VLOOKUP(A17,CPU!$A$1:$N$4921,10) -> 10.581779 | I17: =ROUND(F17*H17,2) -> 44443.47 | J17: 0.01468116598
A18: 7.5 | B18: 2.3 | C18: EXECUÇÃO E COMPACTAÇÃO DE ATERRO COM SOLO PREDOMINANTEMENTE ARGILOSO - EXCLUSIVE SOLO, ESCAVAÇÃO, CARGA E TRANSPORTE | D18: 96385 | E18: M3 | F18: 2700 | G18: =VLOOKUP(A18,CPU!$A$1:$N$4921,9) -> 11.77 | H18: =VLOOKUP(A18,CPU!$A$1:$N$4921,10) -> 14.299373 | I18: =ROUND(F18*H18,2) -> 38608.31 | J18: 0.01275361728
A19: 8 | B19: 2.4 | C19: REGULARIZAÇÃO E COMPACTAÇÃO DE SUBLEITO | D19: 100576 | E19: M2 | F19: 20000 | G19: =VLOOKUP(A19,CPU!$A$1:$N$4921,9) -> 2.57 | H19: =VLOOKUP(A19,CPU!$A$1:$N$4921,10) -> 3.122293 | I19: =ROUND(F19*H19,2) -> 62445.86 | J19: 0.02062795806
A20: 8.1 | B20: 2.4 | C20: EXECUÇÃO E COMPACTAÇÃO DE BASE E OU SUB BASE PARA PAVIMENTAÇÃO DE SOLO DE COMPORTAMENTO LATERÍTICO - EXCLUSIVE SOLO, ESCAVAÇÃO, CARGA E TRANSPORTE | D20: 96388 | E20: M3 | F20: 3600 | G20: =VLOOKUP(A20,CPU!$A$1:$N$4921,9) -> 12.47 | H20: =VLOOKUP(A20,CPU!$A$1:$N$4921,10) -> 15.149803 | I20: =ROUND(F20*H20,2) -> 54539.29 | J20: 0.0180161533
A21: 8.2 | B21: 2.5 | C21: IMPRIMAÇÃO COM EMULSÃO ASFÁLTICA (EAI) | D21: 96401 | E21: M2 | F21: 6300 | G21: =VLOOKUP(A21,CPU!$A$1:$N$4921,9) -> 1.23 | H21: =VLOOKUP(A21,CPU!$A$1:$N$4921,10) -> 1.49 | I21: =ROUND(F21*H21,2) -> 9387 | J21: 0.003100840349
A22: 8.3 | B22: 2.6 | C22: PINTURA DE LIGAÇÃO COM EMULSÃO ASFÁLTICA RR-2C | D22: 96402 | E22: M2 | F22: 6300 | G22: =VLOOKUP(A22,CPU!$A$1:$N$4921,9) -> 1.01 | H22: =VLOOKUP(A22,CPU!$A$1:$N$4921,10) -> 1.23 | I22: 7749 | J22: 0.002559754114
A23: 8.4 | B23: 2.7 | C23: EXECUÇÃO DE PAVIMENTO COM APLICAÇÃO DE CONCRETO ASFÁLTICO, CAMADA DE ROLAMENTO - EXCLUSIVE CARGA E TRANSPORTE | D23: 95995 | E23: M3 | F23: 200 | G23: =VLOOKUP(A23,CPU!$A$1:$N$4921,9) -> 129.6 | H23: =VLOOKUP(A23,CPU!$A$1:$N$4921,10) -> 157.45104 | I23: =ROUND(F23*H23,2) -> 31490.21 | J23: 0.01040227056
A24: 9 | B24: 2.8 | C24: EXECUÇÃO DE PAVIMENTO EM PISO INTERTRAVADO, COM BLOCO DE CONCRETO DO TIPO 16 FACES DE 22 X 11CM, ESPESSURA 8 CM | D24: 92394 | E24: M2 | F24: 9600 | G24: =VLOOKUP(A24,CPU!$A$1:$N$4921,9) -> 61.66 | H24: =VLOOKUP(A24,CPU!$A$1:$N$4921,10) -> 74.910734 | I24: =ROUND(F24*H24,2) -> 719143.05 | J24: 0.2375570242
A25: C | B25: 3 | C25: TRANSPORTE DE MATERIAIS | I25: =SUM(I26:I27) -> 263511.81 | J25: =I25/I53 -> 0.08704677244
A26: 10 | B26: 3.1 | C26: TRANSPORTE COM CAMINHÃO BASCULANTE, EM VIA URBANA PAVIMENTADA | D26: 95427 | E26: M3XKM | F26: 89999.9951 | G26: =VLOOKUP(A26,CPU!$A$1:$N$4921,9) -> 0.73 | H26: =VLOOKUP(A26,CPU!$A$1:$N$4921,10) -> 0.886877 | I26: =ROUND(F26*H26,2) -> 79818.93 | J26: =I26/$I$53 -> 0.02636686468
A27: 11 | B27: 3.2 | C27: TRANSPORTE COM CAMINHÃO CARROCERIA, EM VIA URBANA PAVIMENTADA | D27: 100948 | E27: TXKM | F27: 179999.9996 | G27: =VLOOKUP(A27,CPU!$A$1:$N$4921,9) -> 0.84 | H27: =VLOOKUP(A27,CPU!$A$1:$N$4921,10) -> 1.020516 | I27: =ROUND(F27*H27,2) -> 183692.88 | J27: =I27/$I$53 -> 0.06067990776
A28: D | B28: 4 | C28: DRENAGEM E OBRAS COMPLEMENTARES | I28: =SUM(I29:I48) -> 1204486.55 | J28: =I28/I53 -> 0.3978822301
A29: 12 | B29: 4.1 | C29: EXECUÇÃO DE PASSEIO (CALÇADA) OU PISO DE CONCRETO COM CONCRETO MOLDADO IN LOCO, FEITO EM OBRA, ACABAMENTO CONVENCIONAL, NÃO ARMADO. | D29: 94990 | E29: M3 | F29: 110 | G29: =VLOOKUP(A29,CPU!$A$1:$N$4921,9) -> 773.45 | H29: =VLOOKUP(A29,CPU!$A$1:$N$4921,10) -> 939.664405 | I29: =ROUND(F29*H29,2) -> 103363.08 | J29: =I29/$I$53 -> 0.03414428561
A30: 13 | B30: 4.2 | C30: GUIA (MEIO-FIO) E SARJETA CONJUGADOS DE CONCRETO, MOLDADA IN LOCO EM TRECHO RETO COM EXTRUSORA, 45 CM BASE (15 CM BASE DA GUIA + SARJETA (30 X 0,05))X 22 CM ALTURA | D30: 94267 | E30: M | F30: 3300 | G30: =VLOOKUP(A30,CPU!$A$1:$N$4921,9) -> 47.75 | H30: =VLOOKUP(A30,CPU!$A$1:$N$4921,10) -> 58.011475 | I30: =ROUND(F30*H30,2) -> 191437.87 | J30: 0.06323833723
A31: 14 | B31: 4.3 | C31: GUIA (MEIO-FIO) CONCRETO, MOLDADA IN LOCO EM TRECHO RETO COM EXTRUSORA, 13 CM BASE X 22 CM ALTURA - PARA TRAVAMENTO | D31: 94263 | E31: M | F31: 100 | G31: =VLOOKUP(A31,CPU!$A$1:$N$4921,9) -> 35.59 | H31: =VLOOKUP(A31,CPU!$A$1:$N$4921,10) -> 43.238291 | I31: =ROUND(F31*H31,2) -> 4323.83 | J31: 0.001428305798
A32: 15 | B32: 4.4 | C32: LOCAÇÃO DE REDE DE ÁGUA OU ESGOTO | D32: 99063 | E32: M | F32: 900 | G32: =VLOOKUP(A32,CPU!$A$1:$N$4921,9) -> 5.92 | H32: =VLOOKUP(A32,CPU!$A$1:$N$4921,10) -> 7.192208 | I32: =ROUND(F32*H32,2) -> 6472.99 | J32: 0.002138245293
A33: 16 | B33: 4.5 | C33: ESCAVAÇÃO MECANIZADA DE VALA COM PROFUNDIDADE ATÉ 1,5 M, EM SOLO DE 1A CATEGORIA | D33: 90105 | E33: M3 | F33: 1600 | G33: =VLOOKUP(A33,CPU!$A$1:$N$4921,9) -> 9.34 | H33: =VLOOKUP(A33,CPU!$A$1:$N$4921,10) -> 11.347166 | I33: 18155.47 | J33: 0.005997359532
A34: 17 | B34: 4.6 | C34: PREPARO DE FUNDO DE VALA COM LARGURA MENOR QUE 1,5 M (ACERTO DO SOLO NATURAL), INCLUSIVE LASTRO DE CONCRETO MAGRO PARA BERÇO | D34: 101616+ 95240 | E34: M2 | F34: 1100 | G34: =VLOOKUP(A34,CPU!$A$1:$N$4921,9) -> 59.33 | H34: =VLOOKUP(A34,CPU!$A$1:$N$4921,10) -> 72.080017 | I34: 79288.02 | J34: 0.02619148733
A35: 18 | B35: 4.7 | C35: ESCORAMENTO DE VALA, TIPO PONTALETEAMENTO | D35: 101570 | E35: M2 | F35: 2700 | G35: =VLOOKUP(A35,CPU!$A$1:$N$4921,9) -> 26.27 | H35: =VLOOKUP(A35,CPU!$A$1:$N$4921,10) -> 31.915423 | I35: 86171.64 | J35: 0.02846537746
A36: 19 | B36: 4.8 | C36: TUBO DE CONCRETO PARA REDES COLETORAS DE ÁGUAS PLUVIAIS, DIÂMETRO DE 400 MM, JUNTA RÍGIDA - FORNECIMENTO E ASSENTAMENTO | D36: 92210 | E36: M | F36: 450 | G36: =VLOOKUP(A36,CPU!$A$1:$N$4921,9) -> 186.67 | H36: =VLOOKUP(A36,CPU!$A$1:$N$4921,10) -> 226.785383 | I36: 102053.42 | J36: 0.03371166107
A37: 20 | B37: 4.9 | C37: TUBO DE CONCRETO PARA REDES COLETORAS DE ÁGUAS PLUVIAIS, DIÂMETRO DE 600 MM, JUNTA RÍGIDA - FORNECIMENTO E ASSENTAMENTO | D37: 92212 | E37: M | F37: 320 | G37: =VLOOKUP(A37,CPU!$A$1:$N$4921,9) -> 337.51 | H37: =VLOOKUP(A37,CPU!$A$1:$N$4921,10) -> 410.040899 | I37: =ROUND(F37*H37,2) -> 131213.09 | J37: 0.04334407625
A38: 21 | B38: 4.10 | C38: TUBO DE CONCRETO PARA REDES COLETORAS DE ÁGUAS PLUVIAIS, DIÂMETRO DE 800 MM, JUNTA RÍGIDA - FORNECIMENTO E ASSENTAMENTO | D38: 92214 | E38: M | F38: 130 | G38: =VLOOKUP(A38,CPU!$A$1:$N$4921,9) -> 348.86 | H38: =VLOOKUP(A38,CPU!$A$1:$N$4921,10) -> 423.830014 | I38: 55097.9 | J38: 0.01820068088
A39: 22 | B39: 4.11 | C39: CAIXA PARA BOCA DE LOBO COMBINADA COM GRELHA RETANGULAR, EM ALVENARIA COM BLOCOS DE CONCRETO, DIMENSÕES INTERNAS: 1,3X1X1,2 M. | D39: 97961 | E39: UNID. | F39: 36 | G39: =VLOOKUP(A39,CPU!$A$1:$N$4921,9) -> 2438.16 | H39: =VLOOKUP(A39,CPU!$A$1:$N$4921,10) -> 2962.120584 | I39: =ROUND(F39*H39,2) -> 106636.34 | J39: 0.03522555297
A40: 23 | B40: 4.12 | C40: CAIXA PARA BOCA DE LOBO DUPLA COMBINADA COM GRELHA RETANGULAR, EM ALVENARIA COM BLOCOS DE CONCRETO, DIMENSÕES INTERNAS: 1,3X2,2X1,2 M | D40: 97973 | E40: UNID. | F40: 12 | G40: =VLOOKUP(A40,CPU!$A$1:$N$4921,9) -> 4583.45 | H40: =VLOOKUP(A40,CPU!$A$1:$N$4921,10) -> 5568.433405 | I40: =ROUND(F40*H40,2) -> 66821.2 | J40: 0.02207327934
A41: 24 | B41: 4.13 | C41: POÇO DE VISITA RETANGULAR PARA DRENAGEM, EM ALVENARIA COM BLOCOS DE CONCRETO, DIMENSÕES INTERNAS = 1X1 M, PROFUNDIDADE = 1,40 M, INCLUSIVE TAMPÃO EM FERRO FUNDIDO D = 600MM | D41: 99252 | E41: UNID. | F41: 15 | G41: =VLOOKUP(A41,CPU!$A$1:$N$4921,9) -> 2811.21 | H41: =VLOOKUP(A41,CPU!$A$1:$N$4921,10) -> 3415.339029 | I41: =ROUND(F41*H41,2) -> 51230.09 | J41: 0.01692301376
A42: 25 | B42: 4.14 | C42: BACIA DE DISSIPAÇÃO, TIPO BACIA EM PEDRA DE MÃO FIXADA COM CONCRETO (DEB 01, 02), COM PREPARO MANUAL, FCK = 20 MPA, LANÇADO MANUALMENTE, INCLUINDO MATERIAIS E FÔRMAS | D42: 103930 | E42: M3 | F42: 8 | G42: =VLOOKUP(A42,CPU!$A$1:$N$4921,9) -> 781.01 | H42: =VLOOKUP(A42,CPU!$A$1:$N$4921,10) -> 948.849049 | I42: =ROUND(F42*H42,2) -> 7590.79 | J42: 0.002507492054
A43: 26 | B43: 4.15 | C43: ESCADA HIDRÁULICA, LARGURA ATÉ 1M, TIPO DESCIDA DÁGUA DE CORTE OU ATERRO EM DEGRAUS (DCD 02, 04 E DAD 02), EM CONCRETO USINADO, FCK = 20 MPA, INCLUINDO ARMAÇÃO, MATERIAIS E FÔRMAS | D43: 103925 | E43: M3 | F43: 15 | G43: =VLOOKUP(A43,CPU!$A$1:$N$4921,9) -> 1523.07 | H43: =VLOOKUP(A43,CPU!$A$1:$N$4921,10) -> 1850.377743 | I43: 27755.67 | J43: 0.009168626978
A44: 27 | B44: 4.16 | C44: REATERRO MANUAL DE VALAS COM COMPACTAÇÃO MECANIZADA | D44: 93382 | E44: M3 | F44: 1600 | G44: =VLOOKUP(A44,CPU!$A$1:$N$4921,9) -> 25.17 | H44: =VLOOKUP(A44,CPU!$A$1:$N$4921,10) -> 30.579033 | I44: =ROUND(F44*H44,2) -> 48926.45 | J44: 0.01616204435
A45: 28 | B45: 4.17 | C45: BOCA PARA BUEIRO SIMPLES TUBULAR D = 80 CM EM CONCRETO, ALAS COM ESCONSIDADE DE 0°, INCLUINDO FÔRMAS E MATERIAIS | D45: 102739 | E45: UNID. | F45: 5 | G45: =VLOOKUP(A45,CPU!$A$1:$N$4921,9) -> 3650.96 | H45: =VLOOKUP(A45,CPU!$A$1:$N$4921,10) -> 4435.551304 | I45: =ROUND(F45*H45,2) -> 22177.76 | J45: 0.007326056574
A46: 29 | B46: 4.18 | C46: FAIXA ELEVADA PARA TRAVESSIA DE PEDESTRES - CONF. PROJETO, INCLUSIVE PINTURA DE SINALIZAÇÃO | D46: CPU.4 | E46: UNID. | F46: 7 | G46: =VLOOKUP(A46,CPU!$A$1:$N$4921,9) -> 6466.73 | H46: =VLOOKUP(A46,CPU!$A$1:$N$4921,10) -> 7856.430277 | I46: =ROUND(F46*H46,2) -> 54995.01 | J46: 0.01816669287
A47: 30 | B47: 4.19 | C47: ESTACA BROCA DE CONCRETO, DIÂMETRO DE 30CM, ESCAVAÇÃO MANUAL COM TRADO CONCHA, COM ARMADURA DE ARRANQUE | D47: 101175 | E47: M | F47: 100 | G47: =VLOOKUP(A47,CPU!$A$1:$N$4921,9) -> 113.27 | H47: =VLOOKUP(A47,CPU!$A$1:$N$4921,10) -> 137.611723 | I47: =ROUND(F47*H47,2) -> 13761.17 | J47: 0.004545775134
A48: 31 | B48: 4.20 | C48: CONTENÇÃO EM CORTINA COM ESTACAS ESPAÇADAS COM 30 CM DE DIÂMETRO E PROFUNDIDADE MENOR OU IGUAL A 10 M. | D48: 98615 | E48: M2 | F48: 140 | G48: =VLOOKUP(A48,CPU!$A$1:$N$4921,9) -> 158.83 | H48: =VLOOKUP(A48,CPU!$A$1:$N$4921,10) -> 192.962567 | I48: 27014.76 | J48: 0.008923879602
A49: E | B49: 5 | C49: FORNECIMENTOS - MATERIAL ASFÁLTICO (BDI DIFERENCIADO) | I49: =SUM(I50:I52) -> 377785.06 | J49: =I49/I76 -> 
A50: 34 | B50: 5.1 | C50: AQUISIÇÃO DE EMULSÃO ASFÁLTICA PARA IMPRIMAÇÃO (EAI) - EXCLUSIVE TRANSPORTE | D50: CPU.7 | E50: T | F50: 8.2 | G50: =VLOOKUP(A50,CPU!$A$1:$N$4921,9) -> 2689.76 | H50: =VLOOKUP(A50,CPU!$A$1:$N$4921,10) -> 3093.22 | I50: =ROUND(F50*H50,2) -> 25364.4 | J50: =I50/$I$53 -> 0.008378710445
A51: 35 | B51: 5.2 | C51: AQUISIÇÃO DE EMULSAO ASFALTICA CATIONICA RR-1C - EXCLUSIVE TRANSPORTE | D51: CPU.8 | E51: T | F51: 2.845 | G51: =VLOOKUP(A51,CPU!$A$1:$N$4921,9) -> 2706.7 | H51: =VLOOKUP(A51,CPU!$A$1:$N$4921,10) -> 3112.71 | I51: 8855.66 | J51: 0.002925320959
A52: 36 | B52: 5.3 | C52: AQUISIÇÃO DE CONCRETO BETUMINOSO USINADO A QUENTE (CBUQ) PARA PAVIMENTACAO ASFALTICA, PADRAO DNIT, FAIXA C, COM CAP 50/70 - EXCLUSIVE TRANSPORTE | D52: CPU.9 | E52: T | F52: 500 | G52: =VLOOKUP(A52,CPU!$A$1:$N$4921,9) -> 597.5 | H52: =VLOOKUP(A52,CPU!$A$1:$N$4921,10) -> 687.13 | I52: 343565 | J52: 0.113491021
B53: TOTAL GERAL DA OBRA COM BDI | I53: =SUM(I9,I15,I25,I28,I49) -> 3027243.89 | J53: =I53/F19 -> 151.3621945

Sheet CPU
A1: 1 | B1: CODEVASF | E1: COMPOSIÇÃO DE PREÇO UNITÁRIO | I1: =H12 -> 14753.36 | J1: =H14 -> 17923.85706 | K1: BDI CALCULADO: | M1: =ORÇAMENTO!I6 -> 0.2149
B2: OBRA: | C2: =ORÇAMENTO!C5 -> DRENAGEM E PAVIMENTAÇÃO - PARQUE DE EXPOSIÇÕES - SERRO/MG (ITEM 1) | G2: DATA: | H2: =ORÇAMENTO!C6 -> OUTUBRO/2023 | K2: BDI FORNECIMENTO: | M2: =ORÇAMENTO!I7 -> 0.15
B3: SERVIÇO: | C3: =VLOOKUP(A1,ORÇAMENTO!A10:I30,3) -> MOBILIZAÇÃO E DESMOBILIZAÇÃO | E3: Referência: | F3: =VLOOKUP(A1,ORÇAMENTO!A10:I30,4) -> CPU.1 | G3: UNIDADE: | H3: =VLOOKUP(A1,ORÇAMENTO!A10:I30,5) -> GL
B5: TIPO ITEM | C5: CODIGO ITEM | D5: DESCRIÇÃO ITEM | E5: UNIDADE ITEM | F5: COEFICIENTE | G5: PRECO UNITARIO | H5: CUSTO TOTAL
B6: COMPOSICAO | C6: 5824 | D6: CAMINHÃO TOCO, PBT 16.000 KG, CARGA ÚTIL MÁX. 10.685 KG, DIST. ENTRE EIXOS 4,8 M, POTÊNCIA 189 CV, INCLUSIVE CARROCERIA FIXA ABERTA DE MADEIRA P/ TRANSPORTE GERAL DE CARGA SECA | E6: CHP | F6: 16 | G6: 202.74 | H6: =ROUNDDOWN(F6*G6,2) -> 3243.84 | M6: .
B7: COMPOSICAO | C7: 5826 | D7: CAMINHÃO TOCO, PBT 16.000 KG, CARGA ÚTIL MÁX. 10.685 KG, DIST. ENTRE EIXOS 4,8 M, POTÊNCIA 189 CV, INCLUSIVE CARROCERIA FIXA ABERTA DE MADEIRA P/ TRANSPORTE GERAL DE CARGA SECA | E7: CHI | F7: 16 | G7: 60.95 | H7: =ROUNDDOWN(F7*G7,2) -> 975.2
B8: COMPOSICAO | C8: 5914640 | D8: TRANSPORTE COM CAVALO MECÂNICO COM SEMIRREBOQUE COM CAPACIDADE DE 30 T - RODOVIA PAVIMENTADA | E8: T.KM | F8: 4354 | G8: 0.58 | H8: =ROUNDDOWN(F8*G8,2) -> 2525.32
B9: COMPOSIÇÃO | C9: 88316 | D9: SERVENTE COM ENCARGOS COMPLEMENTARES | E9: H | F9: 32 | G9: 19.76 | H9: =ROUNDDOWN(F9*G9,2) -> 632.32
H10: =ROUNDDOWN(F10*G10,2) -> 0
B11: PRODUÇÃO DA EQUIPE | E11: 0.5 | F11: CUSTO | H11: =SUM(H6:H10) -> 7376.68
B12: TOTAL | H12: =H11/E11 -> 14753.36 | I12: OK
B13: BDI % | H13: =1+$M$1 -> 1.2149
B14: TOTAL DO SERVIÇO - R$ | H14: =H12*H13 -> 17923.85706
A16: =A1+1 -> 2 | B16: CODEVASF | E16: COMPOSIÇÃO DE PREÇO UNITÁRIO | I16: =H31 -> 130204.5 | J16: =H33 -> 158185.447
B17: OBRA: | C17: =$C$2 -> DRENAGEM E PAVIMENTAÇÃO - PARQUE DE EXPOSIÇÕES - SERRO/MG (ITEM 1) | G17: DATA: | H17: =$H$2 -> OUTUBRO/2023
B18: SERVIÇO: | C18: =VLOOKUP(A16,ORÇAMENTO!$A$10:$I$30,3) -> ADMINISTRAÇÃO LOCAL | E18: SINAPI | F18: CPU | G18: UNIDADE: | H18: =VLOOKUP(A16,ORÇAMENTO!$A$10:$I$30,5) -> GL | I18: =ORÇAMENTO!J11 -> 0.05225394971
B20: TIPO ITEM | C20: CODIGO ITEM | D20: DESCRIÇÃO ITEM | E20: UNIDADE ITEM | F20: COEFICIENTE | G20: PRECO UNITARIO | H20: CUSTO TOTAL
B21: INSUMO | C21: 14250 | D21: ENERGIA ELÉTRICA | E21: kwh | F21: 50 | G21: 0.94 | H21: =ROUNDDOWN(F21*G21,2) -> 47
B22: INSUMO | C22: 44480 | D22: TARIFA FORNECIMENTO DE ÁGUA/ESGOTO | E22: M3 | F22: 5 | G22: 17.78 | H22: =ROUNDDOWN(F22*G22,2) -> 88.9
B23: COTAÇÃO | C23: MERC. | D23: TELEFONE (PLANO CONTROLE) | E23: UNID | F23: 2 | G23: 59.9 | H23: 119.8
B24: COMPOSICAO | C24: 90777 | D24: Engenheiro Civil Júnior com encargos complementares | E24: H | F24: 55 | G24: 114.12 | H24: 6276.6
B25: COMPOSICAO | C25: 90776 | D25: Encarregado Geral com encargos complementares | E25: H | F25: 110 | G25: 57.73 | H25: =ROUNDDOWN(F25*G25,2) -> 6350.3
B26: COMPOSICAO | C26: 88321 | D26: Tecnico de Laboratório com encargos complementares | E26: H | F26: 110 | G26: 45.45 | H26: =ROUNDDOWN(F26*G26,2) -> 4999.5
B27: COMPOSICAO | C27: 100309 | D27: Tecnico em Segurança do Trabalho com encargos complementares | E27: H | F27: 55 | G27: 45.71 | H27: =ROUNDDOWN(F27*G27,2) -> 2514.05
B28: COMPOSICAO | C28: 90772 | D28: Auxiliar de escritório com encargos complementares | E28: H | F28: 55 | G28: 23.72 | H28: 1304.6
H29: 0
B30: PRODUÇÃO DA EQUIPE | E30: =1/6 -> 0.1666666667 | F30: CUSTO | H30: =SUM(H21:H29) -> 21700.75
B31: TOTAL | H31: =H30/E30 -> 130204.5 | I31: OK
B32: BDI % | H32: =1+$M$1 -> 1.2149
B33: TOTAL DO SERVIÇO - R$ | H33: =H31*H32 -> 158185.447
A35: =A16+1 -> 3 | B35: CODEVASF | E35: COMPOSIÇÃO DE PREÇO UNITÁRIO | I35: =H45 -> 13531.5 | J35: =H47 -> 16439.41935
B36: OBRA: | C36: =$C$2 -> DRENAGEM E PAVIMENTAÇÃO - PARQUE DE EXPOSIÇÕES - SERRO/MG (ITEM 1) | G36: DATA: | H36: =$H$2 -> OUTUBRO/2023
B37: SERVIÇO: | C37: =VLOOKUP(A35,ORÇAMENTO!$A$10:$I$30,3) -> CANTEIRO DE OBRAS | E37: SINAPI | F37: =VLOOKUP(A35,ORÇAMENTO!$A$10:$I$30,4) -> CPU.3 | G37: UNIDADE: | H37: =VLOOKUP(A35,ORÇAMENTO!$A$10:$I$30,5) -> GL
B39: TIPO ITEM | C39: CODIGO ITEM | D39: DESCRIÇÃO ITEM | E39: UNIDADE ITEM | F39: COEFICIENTE | G39: PRECO UNITARIO | H39: CUSTO TOTAL
B40: COTAÇÃO | C40: 10775 | D40: ALUGUEL DE IMÓVEL OU CONTEINER QUE ATENDA AOS REQUISITOS MÍNIMOS PARA INSTALAÇÃO DO CANTEIRO DE OBRAS | E40: MÊS | F40: 6 | G40: 975 | H40: =ROUNDDOWN(F40*G40,2) -> 5850
B41: INSUMO | C41: 10779 | D41: LOCACAO DE CONTAINER 2,30 X 4,30 M, ALT. 2,50 M, P/ SANITARIO, C/ 5 BACIAS, 1 LAVATORIO E 4 MICTORIOS | E41: MÊS | F41: 6 | G41: 1218.75 | H41: =ROUNDDOWN(F41*G41,2) -> 7312.5
B42: INSUMO | C42: 37525 | D42: TELA PLASTICA TECIDA LISTRADA BRANCA E LARANJA, TIPO GUARDA CORPO, EM POLIETILENO MONOFILADO, ROLO 1,20 X 50 M (L X C) | E42: M | F42: 100 | G42: 3.69 | H42: 369
H43: 0
B44: PRODUÇÃO DA EQUIPE | E44: 1 | F44: CUSTO | H44: =SUM(H40:H43) -> 13531.5
B45: TOTAL | H45: =H44/E44 -> 13531.5 | I45: OK
B46: BDI % | H46: =1+$M$1 -> 1.2149
B47: TOTAL DO SERVIÇO - R$ | H47: =H45*H46 -> 16439.41935
A49: =A35+1 -> 4 | B49: CODEVASF | E49: COMPOSIÇÃO DE PREÇO UNITÁRIO | I49: =H63 -> 340.5 | J49: =H65 -> 413.67345
B50: OBRA: | C50: =$C$2 -> DRENAGEM E PAVIMENTAÇÃO - PARQUE DE EXPOSIÇÕES - SERRO/MG (ITEM 1) | G50: DATA: | H50: =$H$2 -> OUTUBRO/2023
B51: SERVIÇO: | C51: =VLOOKUP(A49,ORÇAMENTO!$A$10:$I$30,3) -> PLACA DE OBRA EM CHAPA DE AÇO GALVANIZADO | E51: SINAPI | F51: =VLOOKUP(A49,ORÇAMENTO!$A$10:$I$30,4) -> 103689 | G51: UNIDADE: | H51: =VLOOKUP(A49,ORÇAMENTO!$A$10:$I$30,5) -> M2
B53: TIPO ITEM | C53: CODIGO ITEM | D53: DESCRIÇÃO ITEM | E53: UNIDADE ITEM | F53: COEFICIENTE | G53: PRECO UNITARIO | H53: CUSTO TOTAL
B54: INSUMO | C54: 4509 | D54: SARRAFO *2,5 X 10* CM EM PINUS, MISTA OU EQUIVALENTE DA REGIAO - BRUTA | E54: M | F54: 3,2083000 | G54: 4,41 | H54: =ROUNDDOWN(F54*G54,2) -> 14.14
B55: INSUMO | C55: 4813 | D55: PLACA DE OBRA (PARA CONSTRUCAO CIVIL) EM CHAPA GALVANIZADA *N. 22*, ADESIVADA, DE *2,4 X 1,2* M (SEM POSTES PARA FIXACAO) | E55: M2 | F55: 1,0000000 | G55: 250,00 | H55: =ROUNDDOWN(F55*G55,2) -> 250
B56: INSUMO | C56: 5065 | D56: PREGO DE ACO POLIDO COM CABECA 10 X 10 | E56: KG | F56: 0,0113000 | G56: 36,57 | H56: 0.41
B57: INSUMO | C57: 5069 | D57: PREGO DE ACO POLIDO COM CABECA 17 X 27 | E57: KG | F57: 0,0132000 | G57: 19,59 | H57: 0.25
B58: COMPOSICAO | C58: 88262 | D58: CARPINTEIRO DE FORMAS COM ENCARGOS COMPLEMENTARES | E58: H | F58: 0,3729000 | G58: 27,05 | H58: 10.08
B59: COMPOSICAO | C59: 88316 | D59: SERVENTE COM ENCARGOS COMPLEMENTARES | E59: H | F59: 1,1186000 | G59: 19,76 | H59: 22.1
B60: COMPOSICAO | C60: 4115 | D60: MADEIRA ROLICA TRATADA, D = 12 A 15 CM, H = 3,00 M, EM EUCALIPTO OU EQUIVALENTE | E60: M | F60: 2 | G60: 21.76 | H60: =ROUNDDOWN(F60*G60,2) -> 43.52
H61: 0
B62: PRODUÇÃO DA EQUIPE | E62: 1 | F62: CUSTO | H62: =SUM(H54:H61) -> 340.5
B63: TOTAL | H63: =H62/E62 -> 340.5 | I63: OK
B64: BDI % | H64: =1+$M$1 -> 1.2149
B65: TOTAL DO SERVIÇO - R$ | H65: =H63*H64 -> 413.67345
A67: =A49+1 -> 5 | B67: CODEVASF | E67: COMPOSIÇÃO DE PREÇO UNITÁRIO | I67: =H79 -> 0.33 | J67: =H81 -> 0.400917
B68: OBRA: | C68: =$C$2 -> DRENAGEM E PAVIMENTAÇÃO - PARQUE DE EXPOSIÇÕES - SERRO/MG (ITEM 1) | G68: DATA: | H68: =$H$2 -> OUTUBRO/2023
B69: SERVIÇO: | C69: =VLOOKUP(A67,ORÇAMENTO!$A$10:$I$30,3) -> SERVIÇOS TOPOGRÁFICOS PARA PAVIMENTAÇÃO, INCLUSIVE NOTA DE SERVIÇO, ACOMPANHAMENTO E GREIDE | E69: SINAPI | F69: =VLOOKUP(A67,ORÇAMENTO!$A$10:$I$30,4) -> 99064 | G69: UNIDADE: | H69: =VLOOKUP(A67,ORÇAMENTO!$A$10:$I$30,5) -> M2
B71: TIPO ITEM | C71: CODIGO ITEM | D71: DESCRIÇÃO ITEM | E71: UNIDADE ITEM | F71: COEFICIENTE | G71: PRECO UNITARIO | H71: CUSTO TOTAL
B72: COMPOSICAO | C72: 88253 | D72: AUXILIAR DE TOPÓGRAFO COM ENCARGOS COMPLEMENTARES | E72: H | F72: 0.0025 | G72: 21.57 | H72: =ROUNDDOWN(F72*G72,2) -> 0.05
B73: COMPOSICAO | C73: 88288 | D73: NIVELADOR COM ENCARGOS COMPLEMENTARES | E73: H | F73: 0.0025 | G73: 26.99 | H73: =ROUNDDOWN(F73*G73,2) -> 0.06
B74: COMPOSICAO | C74: 88316 | D74: SERVENTE COM ENCARGOS COMPLEMENTARES | E74: H | F74: 0.0075 | G74: 19.76 | H74: 0.14
B75: COMPOSICAO | C75: 88597 | D75: DESENHISTA DETALHISTA COM ENCARGOS COMPLEMENTARES | E75: H | F75: 0.002 | G75: 29.72 | H75: 0.05
B76: COMPOSICAO | C76: 92145 | D76: CAMINHONETE CABINE SIMPLES COM MOTOR 1.6 FLEX, CÂMBIO MANUAL, POTÊNCIA 101/104 CV, 2 PORTAS | E76: CHP | F76: 0.0005 | G76: 75.75 | H76: 0.03
H77: 0
B78: PRODUÇÃO DA EQUIPE | E78: 1 | F78: CUSTO | H78: =SUM(H72:H77) -> 0.33
B79: TOTAL | H79: =H78/E78 -> 0.33 | I79: OK
B80: BDI % | H80: =1+$M$1 -> 1.2149
B81: TOTAL DO SERVIÇO - R$ | H81: =H79*H80 -> 0.400917
A83: =A67+1 -> 6 | B83: CODEVASF | E83: COMPOSIÇÃO DE PREÇO UNITÁRIO | I83: =H92 -> 2.2 | J83: =H94 -> 2.67278
B84: OBRA: | C84: =$C$2 -> DRENAGEM E PAVIMENTAÇÃO - PARQUE DE EXPOSIÇÕES - SERRO/MG (ITEM 1) | G84: DATA: | H84: =$H$2 -> OUTUBRO/2023
B85: SERVIÇO: | C85: =VLOOKUP(A83,ORÇAMENTO!$A$10:$I$30,3) -> ESCAVAÇÃO HORIZONTAL EM SOLO DE 1A CATEGORIA COM TRATOR DE ESTEIRAS | E85: SINAPI | F85: =VLOOKUP(A83,ORÇAMENTO!$A$10:$I$30,4) -> 101116 | G85: UNIDADE: | H85: =VLOOKUP(A83,ORÇAMENTO!$A$10:$I$30,5) -> M3
B87: TIPO ITEM | C87: CODIGO ITEM | D87: DESCRIÇÃO ITEM | E87: UNIDADE ITEM | F87: COEFICIENTE | G87: PRECO UNITARIO | H87: CUSTO TOTAL
B88: COMPOSICAO | C88: 5847 | D88: TRATOR DE ESTEIRAS, POTÊNCIA 170 HP, PESO OPERACIONAL 19 T, CAÇAMBA 5,2 M3 | E88: CHP | F88: 0,0048000 | G88: 253,93 | H88: =ROUNDDOWN(F88*G88,2) -> 1.21
B89: COMPOSICAO | C89: 5849 | D89: TRATOR DE ESTEIRAS, POTÊNCIA 170 HP, PESO OPERACIONAL 19 T, CAÇAMBA 5,2 M3 | E89: CHI | F89: 0,0082000 | G89: 90,40 | H89: =ROUNDDOWN(F89*G89,2) -> 0.74
B90: COMPOSICAO | C90: 88316 | D90: SERVENTE COM ENCARGOS COMPLEMENTARES | E90: H | F90: 0,0131000 | G90: 19,76 | H90: =ROUNDDOWN(F90*G90,2) -> 0.25
B91: PRODUÇÃO DA EQUIPE | E91: 1 | F91: CUSTO | H91: =SUM(H88:H90) -> 2.2
B92: TOTAL | H92: =H91/E91 -> 2.2 | I92: OK
B93: BDI % | H93: =1+$M$1 -> 1.2149
B94: TOTAL DO SERVIÇO - R$ | H94: =H92*H93 -> 2.67278
A96: 7 | B96: CODEVASF | E96: COMPOSIÇÃO DE PREÇO UNITÁRIO | I96: =H106 -> 8.71 | J96: =H108 -> 10.581779
B97: OBRA: | C97: =$C$2 -> DRENAGEM E PAVIMENTAÇÃO - PARQUE DE EXPOSIÇÕES - SERRO/MG (ITEM 1) | G97: DATA: | H97: =$H$2 -> OUTUBRO/2023
B98: SERVIÇO: | C98: =VLOOKUP(A96,ORÇAMENTO!$A$10:$I$30,3) -> CARGA, MANOBRA E DESCARGA DE SOLOS E MATERIAIS GRANULARES EM CAMINHÃO BASCULANTE - CARGA COM PÁ CARREGADEIRA E DESCARGA LIVRE | E98: SINAPI | F98: =VLOOKUP(A96,ORÇAMENTO!$A$10:$I$30,4) -> 100976 | G98: UNIDADE: | H98: =VLOOKUP(A96,ORÇAMENTO!$A$10:$I$30,5) -> M3
B100: TIPO ITEM | C100: CODIGO ITEM | D100: DESCRIÇÃO ITEM | E100: UNIDADE ITEM | F100: COEFICIENTE | G100: PRECO UNITARIO | H100: CUSTO TOTAL
B101: COMPOSICAO | C101: 5940 | D101: PÁ CARREGADEIRA SOBRE RODAS, POTÊNCIA LÍQUIDA 128 HP, CAPACIDADE DA CAÇAMBA 1,7 A 2,8 M3, PESO OPERACIONAL 11632 KG | E101: CHP | F101: 0,0083000 | G101: 217,72 | H101: =ROUNDDOWN(F101*G101,2) -> 1.8
B102: COMPOSICAO | C102: 5942 | D102: PÁ CARREGADEIRA SOBRE RODAS, POTÊNCIA LÍQUIDA 128 HP, CAPACIDADE DA CAÇAMBA 1,7 A 2,8 M3, PESO OPERACIONAL 11632 KG | E102: CHI | F102: 0,0074000 | G102: 95,85 | H102: =ROUNDDOWN(F102*G102,2) -> 0.7
B103: COMPOSICAO | C103: 89883 | D103: CAMINHÃO BASCULANTE 18 M3, COM CAVALO MECÂNICO DE CAPACIDADE MÁXIMA DE TRAÇÃO COMBINADO DE 45000 KG, POTÊNCIA 330 CV, INCLUSIVE SEMIREBOQUE COM CAÇAMBA METÁLICA | E103: CHP | F103: 0,0153000 | G103: 348,45 | H103: =ROUNDDOWN(F103*G103,2) -> 5.33
B104: COMPOSICAO | C104: 89884 | D104: CAMINHÃO BASCULANTE 18 M3, COM CAVALO MECÂNICO DE CAPACIDADE MÁXIMA DE TRAÇÃO COMBINADO DE 45000 KG, POTÊNCIA 330 CV, INCLUSIVE SEMIREBOQUE COM CAÇAMBA METÁLICA | E104: CHI | F104: 0,0095000 | G104: 93,65 | H104: =ROUNDDOWN(F104*G104,2) -> 0.88
B105: PRODUÇÃO DA EQUIPE | E105: 1 | F105: CUSTO | H105: =SUM(H101:H104) -> 8.71
B106: TOTAL | H106: =H105/E105 -> 8.71 | I106: OK
B107: BDI % | H107: =1+$M$1 -> 1.2149
B108: TOTAL DO SERVIÇO - R$ | H108: =H106*H107 -> 10.581779
A110: 7.5 | B110: CODEVASF | E110: COMPOSIÇÃO DE PREÇO UNITÁRIO | I110: =H123 -> 11.77 | J110: =H125 -> 14.299373
B111: OBRA: | C111: =$C$2 -> DRENAGEM E PAVIMENTAÇÃO - PARQUE DE EXPOSIÇÕES - SERRO/MG (ITEM 1) | G111: DATA: | H111: =$H$2 -> OUTUBRO/2023
B112: SERVIÇO: | C112: =VLOOKUP(A110,ORÇAMENTO!$A$10:$I$30,3) -> EXECUÇÃO E COMPACTAÇÃO DE ATERRO COM SOLO PREDOMINANTEMENTE ARGILOSO - EXCLUSIVE SOLO, ESCAVAÇÃO, CARGA E TRANSPORTE | E112: SINAPI | F112: =VLOOKUP(A110,ORÇAMENTO!$A$10:$I$30,4) -> 96385 | G112: UNIDADE: | H112: =VLOOKUP(A110,ORÇAMENTO!$A$10:$I$30,5) -> M3
B114: TIPO ITEM | C114: CODIGO ITEM | D114: DESCRIÇÃO ITEM | E114: UNIDADE ITEM | F114: COEFICIENTE | G114: PRECO UNITARIO | H114: CUSTO TOTAL
B115: COMPOSICAO | C115: 5901 | D115: CAMINHÃO PIPA 10.000 L TRUCADO, PESO BRUTO TOTAL 23.000 KG, CARGA ÚTIL MÁXIMA 15.935 KG, DISTÂNCIA ENTRE EIXOS 4,8 M, POTÊNCIA 230 CV, INCLUSIVE TANQUE DE AÇO PARA TRANSPORTE DE ÁGUA | E115: CHP | F115: 0,0040000 | G115: 294,94 | H115: =ROUNDDOWN(F115*G115,2) -> 1.17
B116: COMPOSICAO | C116: 5903 | D116: CAMINHÃO PIPA 10.000 L TRUCADO, PESO BRUTO TOTAL 23.000 KG, CARGA ÚTIL MÁXIMA 15.935 KG, DISTÂNCIA ENTRE EIXOS 4,8 M, POTÊNCIA 230 CV, INCLUSIVE TANQUE DE AÇO PARA TRANSPORTE DE ÁGUA | E116: CHI | F116: 0,0300000 | G116: 72,55 | H116: 2.17
B117: COMPOSICAO | C117: 5932 | D117: MOTONIVELADORA POTÊNCIA BÁSICA LÍQUIDA (PRIMEIRA MARCHA) 125 HP, PESO BRUTO 13032 KG, LARGURA DA LÂMINA DE 3,7 M | E117: CHP | F117: 0,0060000 | G117: 262,71 | H117: 1.57
B118: COMPOSICAO | C118: 5934 | D118: MOTONIVELADORA POTÊNCIA BÁSICA LÍQUIDA (PRIMEIRA MARCHA) 125 HP, PESO BRUTO 13032 KG, LARGURA DA LÂMINA DE 3,7 M | E118: CHI | F118: 0,0270000 | G118: 109,40 | H118: 2.95
B119: COMPOSICAO | C119: 73436 | D119: ROLO COMPACTADOR VIBRATÓRIO PÉ DE CARNEIRO PARA SOLOS, POTÊNCIA 80 HP, PESO OPERACIONAL SEM/COM LASTRO 7,4 / 8,8 T | E119: CHP | F119: 0,0100000 | G119: 163,19 | H119: 1.63
B120: COMPOSICAO | C120: 88316 | D120: SERVENTE COM ENCARGOS COMPLEMENTARES | E120: H | F120: 0,0330000 | G120: 19,76 | H120: 0.65
B121: COMPOSICAO | C121: 93244 | D121: ROLO COMPACTADOR VIBRATÓRIO PÉ DE CARNEIRO PARA SOLOS, POTÊNCIA 80 HP, PESO OPERACIONAL SEM/COM LASTRO 7,4 / 8,8 T | E121: CHI | F121: 0,0230000 | G121: 71,18 | H121: 1.63
B122: PRODUÇÃO DA EQUIPE | E122: 1 | F122: CUSTO | H122: =SUM(H115:H121) -> 11.77
B123: TOTAL | H123: =H122/E122 -> 11.77 | I123: OK
B124: BDI % | H124: =1+$M$1 -> 1.2149
B125: TOTAL DO SERVIÇO - R$ | H125: =H123*H124 -> 14.299373
A127: 8 | B127: CODEVASF | E127: COMPOSIÇÃO DE PREÇO UNITÁRIO | I127: =H140 -> 2.57 | J127: =H142 -> 3.122293
B128: OBRA: | C128: =$C$2 -> DRENAGEM E PAVIMENTAÇÃO - PARQUE DE EXPOSIÇÕES - SERRO/MG (ITEM 1) | G128: DATA: | H128: =$H$2 -> OUTUBRO/2023
B129: SERVIÇO: | C129: =VLOOKUP(A127,ORÇAMENTO!$A$10:$I$30,3) -> REGULARIZAÇÃO E COMPACTAÇÃO DE SUBLEITO | E129: SINAPI | F129: =VLOOKUP(A127,ORÇAMENTO!$A$10:$I$30,4) -> 100576 | G129: UNIDADE: | H129: =VLOOKUP(A127,ORÇAMENTO!$A$10:$I$30,5) -> M2
B131: TIPO ITEM | C131: CODIGO ITEM | D131: DESCRIÇÃO ITEM | E131: UNIDADE ITEM | F131: COEFICIENTE | G131: PRECO UNITARIO | H131: CUSTO TOTAL
B132: COMPOSICAO | C132: 5901 | D132: CAMINHÃO PIPA 10.000 L TRUCADO, PESO BRUTO TOTAL 23.000 KG, CARGA ÚTIL MÁXIMA 15.935 KG, DISTÂNCIA ENTRE EIXOS 4,8 M, POTÊNCIA 230 CV, INCLUSIVE TANQUE DE AÇO PARA TRANSPORTE DE ÁGUA | E132: CHP | F132: 0,0010000 | G132: 294,94 | H132: =ROUNDDOWN(F132*G132,2) -> 0.29
B133: COMPOSICAO | C133: 5903 | D133: CAMINHÃO PIPA 10.000 L TRUCADO, PESO BRUTO TOTAL 23.000 KG, CARGA ÚTIL MÁXIMA 15.935 KG, DISTÂNCIA ENTRE EIXOS 4,8 M, POTÊNCIA 230 CV, INCLUSIVE TANQUE DE AÇO PARA TRANSPORTE DE ÁGUA | E133: CHI | F133: 0,0070000 | G133: 72,55 | H133: 0.5
B134: COMPOSICAO | C134: 5932 | D134: MOTONIVELADORA POTÊNCIA BÁSICA LÍQUIDA (PRIMEIRA MARCHA) 125 HP, PESO BRUTO 13032 KG, LARGURA DA LÂMINA DE 3,7 M | E134: CHP | F134: 0,0001000 | G134: 262,71 | H134: 0.02
B135: COMPOSICAO | C135: 5934 | D135: MOTONIVELADORA POTÊNCIA BÁSICA LÍQUIDA (PRIMEIRA MARCHA) 125 HP, PESO BRUTO 13032 KG, LARGURA DA LÂMINA DE 3,7 M | E135: CHI | F135: 0,0080000 | G135: 109,40 | H135: 0.87
B136: COMPOSICAO | C136: 73436 | D136: ROLO COMPACTADOR VIBRATÓRIO PÉ DE CARNEIRO PARA SOLOS, POTÊNCIA 80 HP, PESO OPERACIONAL SEM/COM LASTRO 7,4 / 8,8 T, LARGURA DE TRABALHO 1,68 M | E136: CHP | F136: 0,0020000 | G136: 163,19 | H136: 0.32
B137: COMPOSICAO | C137: 88316 | D137: SERVENTE COM ENCARGOS COMPLEMENTARES | E137: H | F137: 0,0080000 | G137: 19,76 | H137: 0.15
B138: COMPOSICAO | C138: 93244 | D138: ROLO COMPACTADOR VIBRATÓRIO PÉ DE CARNEIRO PARA SOLOS, POTÊNCIA 80 HP, PESO OPERACIONAL SEM/COM LASTRO 7,4 / 8,8 T, LARGURA DE TRABALHO 1,68 M | E138: CHI | F138: 0,0060000 | G138: 71,18 | H138: 0.42
B139: PRODUÇÃO DA EQUIPE | E139: 1 | F139: CUSTO | H139: =SUM(H132:H138) -> 2.57
B140: TOTAL | H140: =H139/E139 -> 2.57 | I140: OK
B141: BDI % | H141: =1+$M$1 -> 1.2149
B142: TOTAL DO SERVIÇO - R$ | H142: =H140*H141 -> 3.122293
A144: 8.1 | B144: CODEVASF | E144: COMPOSIÇÃO DE PREÇO UNITÁRIO | I144: =H160 -> 12.47 | J144: =H162 -> 15.149803
B145: OBRA: | C145: =$C$2 -> DRENAGEM E PAVIMENTAÇÃO - PARQUE DE EXPOSIÇÕES - SERRO/MG (ITEM 1) | G145: DATA: | H145: =$H$2 -> OUTUBRO/2023
B146: SERVIÇO: | C146: =VLOOKUP(A144,ORÇAMENTO!$A$10:$I$30,3) -> EXECUÇÃO E COMPACTAÇÃO DE BASE E OU SUB BASE PARA PAVIMENTAÇÃO DE SOLO DE COMPORTAMENTO LATERÍTICO - EXCLUSIVE SOLO, ESCAVAÇÃO, CARGA E TRANSPORTE | E146: SINAPI | F146: =VLOOKUP(A144,ORÇAMENTO!$A$10:$I$30,4) -> 96388 | G146: UNIDADE: | H146: =VLOOKUP(A144,ORÇAMENTO!$A$10:$I$30,5) -> M3
B148: TIPO ITEM | C148: CODIGO ITEM | D148: DESCRIÇÃO ITEM | E148: UNIDADE ITEM | F148: COEFICIENTE | G148: PRECO UNITARIO | H148: CUSTO TOTAL
B149: COMPOSICAO | C149: 5684 | D149: ROLO COMPACTADOR VIBRATÓRIO DE UM CILINDRO AÇO LISO, POTÊNCIA 80 HP, PESO OPERACIONAL MÁXIMO 8,1 T, IMPACTO DINÂMICO 16,15 / 9,5 T, LARGURA DE TRABALHO 1,68 M | E149: CHP | F149: 0,0030000 | G149: 159,98 | H149: =ROUNDDOWN(F149*G149,2) -> 0.47
B150: COMPOSICAO | C150: 5685 | D150: ROLO COMPACTADOR VIBRATÓRIO DE UM CILINDRO AÇO LISO, POTÊNCIA 80 HP, PESO OPERACIONAL MÁXIMO 8,1 T, IMPACTO DINÂMICO 16,15 / 9,5 T, LARGURA DE TRABALHO 1,68 M | E150: CHI | F150: 0,0230000 | G150: 69,53 | H150: 1.59
B151: COMPOSICAO | C151: 5901 | D151: CAMINHÃO PIPA 10.000 L TRUCADO, PESO BRUTO TOTAL 23.000 KG, CARGA ÚTIL MÁXIMA 15.935 KG, DISTÂNCIA ENTRE EIXOS 4,8 M, POTÊNCIA 230 CV, INCLUSIVE TANQUE DE AÇO PARA TRANSPORTE DE ÁGUA | E151: CHP | F151: 0,0040000 | G151: 294,94 | H151: 1.17
B152: COMPOSICAO | C152: 5903 | D152: CAMINHÃO PIPA 10.000 L TRUCADO, PESO BRUTO TOTAL 23.000 KG, CARGA ÚTIL MÁXIMA 15.935 KG, DISTÂNCIA ENTRE EIXOS 4,8 M, POTÊNCIA 230 CV, INCLUSIVE TANQUE DE AÇO PARA TRANSPORTE DE ÁGUA | E152: CHI | F152: 0,0220000 | G152: 72,55 | H152: 1.59
B153: COMPOSICAO | C153: 5932 | D153: MOTONIVELADORA POTÊNCIA BÁSICA LÍQUIDA (PRIMEIRA MARCHA) 125 HP, PESO BRUTO 13032 KG, LARGURA DA LÂMINA DE 3,7 M | E153: CHP | F153: 0,0080000 | G153: 262,71 | H153: 2.1
B154: COMPOSICAO | C154: 5934 | D154: MOTONIVELADORA POTÊNCIA BÁSICA LÍQUIDA (PRIMEIRA MARCHA) 125 HP, PESO BRUTO 13032 KG, LARGURA DA LÂMINA DE 3,7 M | E154: CHI | F154: 0,0190000 | G154: 109,40 | H154: 2.07
B155: COMPOSICAO | C155: 88316 | D155: SERVENTE COM ENCARGOS COMPLEMENTARES | E155: H | F155: 0,0260000 | G155: 19,76 | H155: 0.51
B156: INSUMO | C156: 4743 | D156: CASCALHO DE CAVA (FORNECIMENTO PREFEITURA) | E156: M3 | F156: 1 | H156: 0
B157: COMPOSICAO | C157: 96463 | D157: ROLO COMPACTADOR DE PNEUS, ESTATICO, PRESSAO VARIAVEL, POTENCIA 110 HP, PESO SEM/COM LASTRO 10,8/27 T | E157: CHP | F157: 0,0040000 | G157: 218,21 | H157: 0.87
B158: COMPOSICAO | C158: 96464 | D158: ROLO COMPACTADOR DE PNEUS, ESTATICO, PRESSAO VARIAVEL, POTENCIA 110 HP, PESO SEM/COM LASTRO 10,8/27 T | E158: CHI | F158: 0,0220000 | G158: 95,83 | H158: 2.1
B159: PRODUÇÃO DA EQUIPE | E159: 1 | F159: CUSTO | H159: =SUM(H149:H158) -> 12.47
B160: TOTAL | H160: =H159/E159 -> 12.47 | I160: OK
B161: BDI % | H161: =1+$M$1 -> 1.2149
B162: TOTAL DO SERVIÇO - R$ | H162: =H160*H161 -> 15.149803
A164: 8.2 | B164: CODEVASF | E164: COMPOSIÇÃO DE PREÇO UNITÁRIO | I164: =H178 -> 1.23 | J164: =H180 -> 1.49
B165: OBRA: | C165: =$C$2 -> DRENAGEM E PAVIMENTAÇÃO - PARQUE DE EXPOSIÇÕES - SERRO/MG (ITEM 1) | G165: DATA: | H165: =$H$2 -> OUTUBRO/2023
B166: SERVIÇO: | C166: =VLOOKUP(A164,ORÇAMENTO!$A$10:$I$30,3) -> IMPRIMAÇÃO COM EMULSÃO ASFÁLTICA (EAI) | E166: SINAPI | F166: =VLOOKUP(A164,ORÇAMENTO!$A$10:$I$30,4) -> 96401 | G166: UNIDADE: | H166: =VLOOKUP(A164,ORÇAMENTO!$A$10:$I$30,5) -> M2
B168: TIPO ITEM | C168: CODIGO ITEM | D168: DESCRIÇÃO ITEM | E168: UNIDADE ITEM | F168: COEFICIENTE | G168: PRECO UNITARIO | H168: CUSTO TOTAL
B169: COMPOSICAO | C169: 5839 | D169: VASSOURA MECÂNICA REBOCÁVEL COM ESCOVA CILÍNDRICA | E169: CHP | F169: 0,0020000 | G169: 10.3 | H169: =ROUNDDOWN(F169*G169,2) -> 0.02
B170: COMPOSICAO | C170: 5841 | D170: VASSOURA MECÂNICA REBOCÁVEL COM ESCOVA CILÍNDRICA | E170: CHI | F170: 0,0040000 | G170: 5.18 | H170: 0.02
B171: INSUMO | C171: ANP | D171: EMULSÃO ASFÁLTICA PARA IMPRIMAÇÃO (FORNECIMENTO COM BDI DIFERENCIADO) | E171: T | F171: =1.3/1000 -> 0.0013 | H171: 0
B172: COMPOSICAO | C172: 83362 | D172: ESPARGIDOR DE ASFALTO PRESSURIZADO, TANQUE 6 M3 COM ISOLAÇÃO TÉRMICA, AQUECIDO COM 2 MAÇARICOS, COM BARRA ESPARGIDORA 3,60 M, MONTADO SOBRE CAMINHÃO TOCO | E172: CHP | F172: 0,0010000 | G172: 256.34 | H172: 0.25
B173: COMPOSICAO | C173: 88316 | D173: SERVENTE COM ENCARGOS COMPLEMENTARES | E173: H | F173: 0,0060000 | G173: 19.76 | H173: 0.11
B174: COMPOSICAO | C174: 89035 | D174: TRATOR DE PNEUS, POTÊNCIA 85 CV, TRAÇÃO 4X4, PESO COM LASTRO DE 4.675 KG | E174: CHP | F174: 0,0020000 | G174: 135.08 | H174: 0.27
B175: COMPOSICAO | C175: 89036 | D175: TRATOR DE PNEUS, POTÊNCIA 85 CV, TRAÇÃO 4X4, PESO COM LASTRO DE 4.675 KG | E175: CHI | F175: 0,0040000 | G175: 56.48 | H175: 0.22
B176: COMPOSICAO | C176: 91486 | D176: ESPARGIDOR DE ASFALTO PRESSURIZADO, TANQUE 6 M3 COM ISOLAÇÃO TÉRMICA, AQUECIDO COM 2 MAÇARICOS, COM BARRA ESPARGIDORA 3,60 M, MONTADO SOBRE CAMINHÃO TOCO | E176: CHI | F176: 0,0050000 | G176: 68.43 | H176: 0.34
B177: PRODUÇÃO DA EQUIPE | E177: 1 | F177: CUSTO | H177: =SUM(H169:H176) -> 1.23
B178: TOTAL | H178: =H177/E177 -> 1.23 | I178: OK
B179: BDI % | H179: =1+$M$1 -> 1.2149
B180: TOTAL DO SERVIÇO - R$ | H180: =ROUND(H178*H179,2) -> 1.49
A182: 8.3 | B182: CODEVASF | E182: COMPOSIÇÃO DE PREÇO UNITÁRIO | I182: =H196 -> 1.01 | J182: =H198 -> 1.23
B183: OBRA: | C183: =$C$2 -> DRENAGEM E PAVIMENTAÇÃO - PARQUE DE EXPOSIÇÕES - SERRO/MG (ITEM 1) | G183: DATA: | H183: =$H$2 -> OUTUBRO/2023
B184: SERVIÇO: | C184: =VLOOKUP(A182,ORÇAMENTO!$A$10:$I$30,3) -> PINTURA DE LIGAÇÃO COM EMULSÃO ASFÁLTICA RR-2C | E184: SINAPI | F184: =VLOOKUP(A182,ORÇAMENTO!$A$10:$I$30,4) -> 96402 | G184: UNIDADE: | H184: =VLOOKUP(A182,ORÇAMENTO!$A$10:$I$30,5) -> M2
B186: TIPO ITEM | C186: CODIGO ITEM | D186: DESCRIÇÃO ITEM | E186: UNIDADE ITEM | F186: COEFICIENTE | G186: PRECO UNITARIO | H186: CUSTO TOTAL
B187: COMPOSICAO | C187: 5839 | D187: VASSOURA MECÂNICA REBOCÁVEL COM ESCOVA CILÍNDRICA | E187: CHP | F187: 0,0020000 | G187: 10.3 | H187: =ROUNDDOWN(F187*G187,2) -> 0.02
B188: COMPOSICAO | C188: 5841 | D188: VASSOURA MECÂNICA REBOCÁVEL COM ESCOVA CILÍNDRICA | E188: CHI | F188: 0,0040000 | G188: 5.18 | H188: 0.02
B189: INSUMO | C189: ANP | D189: EMULSÃO ASFÁLTICA PARA IMPRIMAÇÃO (FORNECIMENTO COM BDI DIFERENCIADO) | E189: T | F189: 0,4500000 | H189: 0
B190: COMPOSICAO | C190: 83362 | D190: ESPARGIDOR DE ASFALTO PRESSURIZADO, TANQUE 6 M3 COM ISOLAÇÃO TÉRMICA, AQUECIDO COM 2 MAÇARICOS, COM BARRA ESPARGIDORA 3,60 M, MONTADO SOBRE CAMINHÃO TOCO | E190: CHP | F190: 0,0004000 | G190: 256.34 | H190: 0.1
B191: COMPOSICAO | C191: 88316 | D191: SERVENTE COM ENCARGOS COMPLEMENTARES | E191: H | F191: 0,0055000 | G191: 19.76 | H191: 0.1
B192: COMPOSICAO | C192: 89035 | D192: TRATOR DE PNEUS, POTÊNCIA 85 CV, TRAÇÃO 4X4, PESO COM LASTRO DE 4.675 KG | E192: CHP | F192: 0,0017000 | G192: 135.08 | H192: 0.22
B193: COMPOSICAO | C193: 89036 | D193: TRATOR DE PNEUS, POTÊNCIA 85 CV, TRAÇÃO 4X4, PESO COM LASTRO DE 4.675 KG | E193: CHI | F193: 0,0038000 | G193: 56.48 | H193: 0.21
B194: COMPOSICAO | C194: 91486 | D194: ESPARGIDOR DE ASFALTO PRESSURIZADO, TANQUE 6 M3 COM ISOLAÇÃO TÉRMICA, AQUECIDO COM 2 MAÇARICOS, COM BARRA ESPARGIDORA 3,60 M, MONTADO SOBRE CAMINHÃO TOCO | E194: CHI | F194: 0,0051000 | G194: 68.43 | H194: 0.34
B195: PRODUÇÃO DA EQUIPE | E195: 1 | F195: CUSTO | H195: =SUM(H187:H194) -> 1.01
B196: TOTAL | H196: =H195/E195 -> 1.01 | I196: OK
B197: BDI % | H197: =1+$M$1 -> 1.2149
B198: TOTAL DO SERVIÇO - R$ | H198: =ROUND(H196*H197,2) -> 1.23
A200: 8.4 | B200: CODEVASF | E200: COMPOSIÇÃO DE PREÇO UNITÁRIO | I200: =H217 -> 129.6 | J200: =H219 -> 157.45104
B201: OBRA: | C201: =$C$2 -> DRENAGEM E PAVIMENTAÇÃO - PARQUE DE EXPOSIÇÕES - SERRO/MG (ITEM 1) | G201: DATA: | H201: =$H$2 -> OUTUBRO/2023
B202: SERVIÇO: | C202: =VLOOKUP(A200,ORÇAMENTO!$A$10:$I$30,3) -> EXECUÇÃO DE PAVIMENTO COM APLICAÇÃO DE CONCRETO ASFÁLTICO, CAMADA DE ROLAMENTO - EXCLUSIVE CARGA E TRANSPORTE | E202: SINAPI | F202: =VLOOKUP(A200,ORÇAMENTO!$A$10:$I$30,4) -> 95995 | G202: UNIDADE: | H202: =VLOOKUP(A200,ORÇAMENTO!$A$10:$I$30,5) -> M3
B204: TIPO ITEM | C204: CODIGO ITEM | D204: DESCRIÇÃO ITEM | E204: UNIDADE ITEM | F204: COEFICIENTE | G204: PRECO UNITARIO | H204: CUSTO TOTAL
B205: INSUMO | C205: 1518 | D205: CONCRETO BETUMINOSO USINADO A QUENTE (CBUQ) PARA PAVIMENTACAO ASFALTICA, PADRAO DNIT, FAIXA C, COM CAP 50/70 - AQUISICAO POSTO USINA | E205: T | F205: 2,5548000 | H205: =ROUNDDOWN(F205*G205,2) -> 0
B206: COMPOSICAO | C206: 5835 | D206: VIBROACABADORA DE ASFALTO SOBRE ESTEIRAS, LARGURA DE PAVIMENTAÇÃO 1,90 M A 5,30 M, POTÊNCIA 105 HP CAPACIDADE 450 T/H | E206: CHP | F206: 0,0464000 | G206: 396,75 | H206: 18.4
B207: COMPOSICAO | C207: 5837 | D207: VIBROACABADORA DE ASFALTO SOBRE ESTEIRAS, LARGURA DE PAVIMENTAÇÃO 1,90 M A 5,30 M, POTÊNCIA 105 HP CAPACIDADE 450 T/H | E207: CHI | F207: 0,0949000 | G207: 165,12 | H207: 15.66
B208: COMPOSICAO | C208: 88314 | D208: RASTELEIRO COM ENCARGOS COMPLEMENTARES | E208: H | F208: 1,1301000 | G208: 26,52 | H208: 29.97
B209: COMPOSICAO | C209: 91386 | D209: CAMINHÃO BASCULANTE 10 M3, TRUCADO CABINE SIMPLES, PESO BRUTO TOTAL 23.000 KG, CARGA ÚTIL MÁXIMA 15.935 KG, DISTÂNCIA ENTRE EIXOS 4,80 M, POTÊNCIA 230 CV INCLUSIVE CAÇAMBA METÁLICA | E209: CHP | F209: 0,0464000 | G209: 252,13 | H209: 11.69
B210: COMPOSICAO | C210: 95631 | D210: ROLO COMPACTADOR VIBRATORIO TANDEM, ACO LISO, POTENCIA 125 HP, PESO SEM/COM LASTRO 10,20/11,65 T, LARGURA DE TRABALHO 1,73 M | E210: CHP | F210: 0,0805000 | G210: 228,02 | H210: 18.35
B211: COMPOSICAO | C211: 95632 | D211: ROLO COMPACTADOR VIBRATORIO TANDEM, ACO LISO, POTENCIA 125 HP, PESO SEM/COM LASTRO 10,20/11,65 T, LARGURA DE TRABALHO 1,73 M | E211: CHI | F211: 0,0607000 | G211: 89,32 | H211: 5.42
B212: COMPOSICAO | C212: 96155 | D212: TRATOR DE PNEUS COM POTÊNCIA DE 85 CV, TRAÇÃO 4X4, COM VASSOURA MECÂNICA ACOPLADA | E212: CHI | F212: 0,1071000 | G212: 61,42 | H212: 6.57
B213: COMPOSICAO | C213: 96157 | D213: TRATOR DE PNEUS COM POTÊNCIA DE 85 CV, TRAÇÃO 4X4, COM VASSOURA MECÂNICA ACOPLADA | E213: CHP | F213: 0,0341000 | G213: 144,29 | H213: 4.92
B214: COMPOSICAO | C214: 96463 | D214: ROLO COMPACTADOR DE PNEUS, ESTATICO, PRESSAO VARIAVEL, POTENCIA 110 HP, PESO SEM/COM LASTRO 10,8/27 T, LARGURA DE ROLAGEM 2,30 M | E214: CHP | F214: 0,0419000 | G214: 218,21 | H214: 9.14
B215: COMPOSICAO | C215: 96464 | D215: ROLO COMPACTADOR DE PNEUS, ESTATICO, PRESSAO VARIAVEL, POTENCIA 110 HP, PESO SEM/COM LASTRO 10,8/27 T, LARGURA DE ROLAGEM 2,30 M | E215: CHI | F215: 0,0990000 | G215: 95,83 | H215: 9.48
B216: PRODUÇÃO DA EQUIPE | E216: 1 | F216: CUSTO | H216: =SUM(H205:H215) -> 129.6
B217: TOTAL | H217: =H216/E216 -> 129.6 | I217: OK
B218: BDI % | H218: =1+$M$1 -> 1.2149
B219: TOTAL DO SERVIÇO - R$ | H219: =H217*H218 -> 157.45104
A221: 9 | B221: CODEVASF | E221: COMPOSIÇÃO DE PREÇO UNITÁRIO | I221: =H236 -> 61.66 | J221: =H238 -> 74.910734
B222: OBRA: | C222: =$C$2 -> DRENAGEM E PAVIMENTAÇÃO - PARQUE DE EXPOSIÇÕES - SERRO/MG (ITEM 1) | G222: DATA: | H222: =$H$2 -> OUTUBRO/2023
B223: SERVIÇO: | C223: =VLOOKUP(A221,ORÇAMENTO!$A$10:$I$30,3) -> EXECUÇÃO DE PAVIMENTO EM PISO INTERTRAVADO, COM BLOCO DE CONCRETO DO TIPO 16 FACES DE 22 X 11CM, ESPESSURA 8 CM | E223: SINAPI | F223: =VLOOKUP(A221,ORÇAMENTO!$A$10:$I$30,4) -> 92394 | G223: UNIDADE: | H223: =VLOOKUP(A221,ORÇAMENTO!$A$10:$I$30,5) -> M2
B225: TIPO ITEM | C225: CODIGO ITEM | D225: DESCRIÇÃO ITEM | E225: UNIDADE ITEM | F225: COEFICIENTE | G225: PRECO UNITARIO | H225: CUSTO TOTAL
B226: INSUMO | C226: 370 | D226: AREIA MEDIA - POSTO JAZIDA/FORNECEDOR (RETIRADO NA JAZIDA, SEM TRANSPORTE) | E226: M3 | F226: 0,0568000 | G226: 90 | H226: =ROUNDDOWN(F226*G226,2) -> 5.11
B227: INSUMO | C227: 712 | D227: BLOQUETE/PISO INTERTRAVADO DE CONCRETO - MODELO 16 FACES, 22 CM X 11 CM, E = 8 CM, RESISTENCIA DE 35 MPA (NBR 9781), COR NATURAL | E227: M2 | F227: 1,0038000 | G227: 48.6 | H227: 48.78
... 399 more rows

Sheet BDI SERV
B1: DETALHAMENTO DO BDI - SERVIÇOS
B4: Item | C4: Descrição dos Serviços | D4: % | E4: %
D5: PV | E5: CD
B7: 1 | C7: ADMINISTRAÇÃO CENTRAL | E7: 4.01
B8: 1.1 | C8: ESCRITÓRIO CENTRAL
B9: 1.2 | C9: VIAGENS
B10: 1.3 | C10: OUTROS
B12: 2 | C12: IMPOSTOS E TAXAS | D12: =SUM(D13:D15) -> 5.65 | E12: =SUM(E13:E15) -> 7.06
B13: 2.1 | C13: ISS (*) | D13: =4*0.5 -> 2 | E13: =ROUND(D13*1.2515,2) -> 2.5
B14: 2.2 | C14: PIS | D14: 0.65 | E14: =ROUND(D14*1.2515,2) -> 0.81
B15: 2.3 | C15: Cofins | D15: 3 | E15: =ROUND(D15*1.2515,2) -> 3.75
B17: 3 | C17: TAXA DE RISCO | E17: =SUM(E18:E21) -> 0.96
B18: 3.1 | C18: SEGURO | E18: 0.2
B19: 3.2 | C19: RISCO | E19: 0.56
B20: 3.3 | C20: GARANTIA | E20: 0.2
B22: 4 | C22: DESPESAS FINANCEIRAS | E22: 1.11
B24: 5 | C24: LUCRO | E24: 8
C26: BDI - CALCULADO | E26: =ROUND((((1+(E7+E17)/100)*(1+E22/100)*(1+E24/100)/(1-D12/100)-1)*100),2) -> 21.49
A28: BDI = ((1+((AC+S+R+G)/100))x(1+DF/100)x(1+L/100)/(1-I/100)-1)*100
B30: BDI (CALCULADO): | D30: =ROUND((((1+((E7+E17)/100))*(1+E22/100)*(1+E24/100))/(1-D12/100)-1)*100,2) -> 21.49 | E30: %
A32: (*) ISS CONFORME LEI COMPLEMENTAR Nº 63/2005 - ART. 30 (QUANT. ESTIMADA DE MATERIAIS = 50%)
A36: BDI EM CONFORMIDADE COM OS ACÓRDÃOS Nº 2369/2011 e ACÓRDÃO Nº 2.622/2013 - TCU - PLENÁRIO

Sheet BDI FORN
B1: DETALHAMENTO DO BDI - FORNECIMENTOS
B4: Item | C4: Descrição dos Serviços | D4: % | E4: %
D5: PV | E5: CD
B7: 1 | C7: ADMINISTRAÇÃO CENTRAL | E7: 3.72
B8: 1.1 | C8: ESCRITÓRIO CENTRAL
B9: 1.2 | C9: VIAGENS
B10: 1.3 | C10: OUTROS
B12: 2 | C12: IMPOSTOS E TAXAS | D12: =SUM(D13:D15) -> 3.65 | E12: =SUM(E13:E15) -> 4.56
B13: 2.1 | C13: ISS (*) | E13: =ROUND(D13*1.2515,2) -> 0
B14: 2.2 | C14: PIS | D14: 0.65 | E14: =ROUND(D14*1.2515,2) -> 0.81
B15: 2.3 | C15: Cofins | D15: 3 | E15: =ROUND(D15*1.2515,2) -> 3.75
B17: 3 | C17: TAXA DE RISCO | E17: =SUM(E18:E21) -> 0.82
B18: 3.1 | C18: SEGURO | E18: 0.16
B19: 3.2 | C19: RISCO | E19: 0.5
B20: 3.3 | C20: GARANTIA | E20: 0.16
B22: 4 | C22: DESPESAS FINANCEIRAS | E22: 0.94
B24: 5 | C24: LUCRO | E24: 5
C26: BDI - CALCULADO | E26: =ROUND((((1+(E7+E17)/100)*(1+E22/100)*(1+E24/100)/(1-D12/100)-1)*100),2) -> 15
A28: BDI = ((1+((AC+S+R+G)/100))x(1+DF/100)x(1+L/100)/(1-I/100)-1)*100
B30: BDI (CALCULADO): | D30: =ROUND((((1+((E7+E17)/100))*(1+E22/100)*(1+E24/100))/(1-D12/100)-1)*100,2) -> 15 | E30: %
A36: BDI EM CONFORMIDADE COM OS ACÓRDÃOS Nº 2369/2011 e ACÓRDÃO Nº 2.622/2013 - TCU - PLENÁRIO

Sheet CRONOGRAMA
B1: CRONOGRAMA FÍSICO-FINANCEIRO
B2: OBRA: | C2: =ORÇAMENTO!C5 -> DRENAGEM E PAVIMENTAÇÃO - PARQUE DE EXPOSIÇÕES - SERRO/MG (ITEM 1) | F2: VALOR: | G2: =ORÇAMENTO!I53 -> 3027243.89
F3: PRAZO: | G3: 180 DIAS
B5: ITEM | C5: ETAPAS/DESCRIÇAO | D5: FISICO/ FINANCEIRO | E5: TOTAL ETAPAS | F5: MÊS 1 | G5: MÊS 2 | H5: MÊS 3 | I5: MÊS 4 | J5: MÊS 5 | K5: MÊS 6 | L5: TOTAL
A6: A | B6: =VLOOKUP(A6,ORÇAMENTO!$A$9:$I$53,2) -> 1 | C6: =VLOOKUP(A6,ORÇAMENTO!$A$9:$I$53,3) -> SERVIÇOS PRELIMINARES | D6: FISICO | E6: =ROUND(E7/$G$2,4) -> 0.0669 | F6: 0.15 | G6: 0.2 | H6: 0.2 | I6: 0.2 | J6: 0.2 | K6: 0.05 | L6: =SUM(F6:K6) -> 1
D7: FINANCEIRO | E7: =ORÇAMENTO!I9 -> 202428.6 | F7: =ROUND($E$7*F6,2) -> 30364.29 | G7: =ROUND($E$7*G6,2) -> 40485.72 | H7: =ROUND($E$7*H6,2) -> 40485.72 | I7: =ROUND($E$7*I6,2) -> 40485.72 | J7: 40485.72 | K7: 10121.43 | L7: 202428.6
A8: B | B8: =VLOOKUP(A8,ORÇAMENTO!$A$9:$I$53,2) -> 2 | C8: =VLOOKUP(A8,ORÇAMENTO!$A$9:$I$53,3) -> TERRAPLANAGEM E PAVIMENTAÇÃO | D8: FISICO | E8: =ROUND(E9/$G$2,4) -> 0.3234 | F8: 0.2 | G8: 0.2 | H8: 0.2 | I8: 0.2 | J8: 0.2 | K8: 0 | L8: 1
D9: FINANCEIRO | E9: =ORÇAMENTO!I15 -> 979031.87 | F9: =ROUND($E$9*F8,2) -> 195806.37 | G9: =ROUND($E$9*G8,2) -> 195806.37 | H9: =ROUND($E$9*H8,2) -> 195806.37 | I9: =ROUND($E$9*I8,2) -> 195806.37 | J9: 195806.37 | K9: 0 | L9: 979031.85
A10: C | B10: =VLOOKUP(A10,ORÇAMENTO!$A$9:$I$53,2) -> 3 | C10: =VLOOKUP(A10,ORÇAMENTO!$A$9:$I$53,3) -> TRANSPORTE DE MATERIAIS | D10: FISICO | E10: =ROUND(E11/$G$2,4) -> 0.087 | F10: 0.2 | G10: 0.2 | H10: 0.2 | I10: 0.2 | J10: 0.2 | K10: 0 | L10: 1
D11: FINANCEIRO | E11: =ORÇAMENTO!I25 -> 263511.81 | F11: =ROUND($E$11*F10,2) -> 52702.36 | G11: =ROUND($E$11*G10,2) -> 52702.36 | H11: =ROUND($E$11*H10,2) -> 52702.36 | I11: =ROUND($E$11*I10,2) -> 52702.36 | J11: 52702.36 | K11: 0 | L11: 263511.8
A12: D | B12: =VLOOKUP(A12,ORÇAMENTO!$A$9:$I$53,2) -> 4 | C12: =VLOOKUP(A12,ORÇAMENTO!$A$9:$I$53,3) -> DRENAGEM E OBRAS COMPLEMENTARES | D12: FISICO | E12: =ROUND(E13/$G$2,4) -> 0.3979 | F12: 0.2 | G12: 0.2 | H12: 0.2 | I12: 0.2 | J12: 0.1 | K12: 0.1 | L12: 1
D13: FINANCEIRO | E13: =ORÇAMENTO!I28 -> 1204486.55 | F13: =ROUND($E$13*F12,2) -> 240897.31 | G13: =ROUND($E$13*G12,2) -> 240897.31 | H13: =ROUND($E$13*H12,2) -> 240897.31 | I13: =ROUND($E$13*I12,2) -> 240897.31 | J13: 120448.66 | K13: 120448.66 | L13: 1204486.56
A14: E | B14: =VLOOKUP(A14,ORÇAMENTO!$A$9:$I$53,2) -> 5 | C14: =VLOOKUP(A14,ORÇAMENTO!$A$9:$I$53,3) -> FORNECIMENTOS - MATERIAL ASFÁLTICO (BDI DIFERENCIADO) | D14: FISICO | E14: =ROUND(E15/$G$2,4) -> 0.1248 | F14: 0.2 | G14: 0.2 | H14: 0.2 | I14: 0.2 | J14: 0.1 | K14: 0.1 | L14: =SUM(F14:K14) -> 1
D15: FINANCEIRO | E15: =ORÇAMENTO!I49 -> 377785.06 | F15: =ROUND($E$15*F14,2) -> 75557.01 | G15: 75557.01 | H15: 75557.01 | I15: 75557.01 | J15: 37778.51 | K15: 37778.51 | L15: 377785.06
B16: TOTAL | D16: FISICO | E16: =SUM(F16:K16) -> 0.9999999934 | F16: =F17/E17 -> 0.1966565502 | G16: =G17/$E$17 -> 0.1999999974 | H16: =H17/$E$17 -> 0.1999999974 | I16: =I17/$E$17 -> 0.1999999974 | J16: 0.1477322727 | K16: 0.05561117839 | L16: 0.9999999934
D17: FINANCEIRO | E17: =E11+E9+E7+E13+E15 -> 3027243.89 | F17: =F11+F9+F7+F13+F15 -> 595327.34 | G17: =G11+G9+G7+G13+G15 -> 605448.77 | H17: =H11+H9+H7+H13+H15 -> 605448.77 | I17: 605448.77 | J17: 447221.62 | K17: 168348.6 | L17: =ROUNDUP(SUM(F17:K17),2)+0.02 -> 3027243.89
B19: OBSERVAÇÕES:
